fUST/lending_fUST_20250514
["ID","MTS","AMOUNT","RATE_DAILY","PERIOD"]
[360970854,1747171846956,-594.55,0.00014246,2]
[360970855,1747171846966,-631.73,0.00014246,2]
[360970856,1747171846978,-400.63,0.00014246,2]
[360970857,1747171846988,-2082.85,0.00014246,2]
[360970858,1747171847000,-1700.28,0.00014246,2]
[360970859,1747171847013,-400.0,0.00014246,2]
[360970860,1747171847028,-404.66,0.00014246,2]
[360970861,1747171847041,-400.0,0.00014246,2]
[360970862,1747171847053,-400.0,0.00014246,2]
[360970863,1747171847064,-498.37,0.00014246,2]
[360970864,1747171847076,-508.09,0.00014246,2]
[360970865,1747171847089,-400.0,0.00014246,2]
[360970866,1747171847103,-1219.22,0.00014246,2]
[360970867,1747171847116,-400.0,0.00014246,2]
[360970868,1747171847128,-400.0,0.00014246,2]
[360970869,1747171847139,-400.0,0.00014246,2]
[360970870,1747171847151,-2779.5,0.00014246,2]
[360970871,1747171847166,-400.0,0.00014246,2]
[360970872,1747171847178,-400.0,0.00014246,2]
[360970873,1747171847191,-654.77,0.00014246,2]
[360970874,1747171847203,-400.0,0.00014246,2]
[360970875,1747171847215,-400.0,0.00014246,2]
[360970876,1747171847228,-400.0,0.00014246,2]
[360970877,1747171847241,-1011.29,0.00014246,2]
[360970878,1747171847254,-400.0,0.00014246,2]
[360970879,1747171847268,-400.0,0.00014246,2]
[360970880,1747171847282,-400.0,0.00014246,2]
[360970881,1747171847295,-151.0,0.00014246,2]
[360970882,1747171847308,-1757.96,0.00014246,2]
[360970883,1747171847321,-828.55,0.00014246,2]
[360970884,1747171847334,-639.16,0.00014246,2]
[360970885,1747171847346,-400.0,0.00014246,2]
[360970886,1747171847359,-910.85,0.00014246,2]
[360970887,1747171847372,-400.0,0.00014246,2]
[360970888,1747171847385,-400.0,0.00014246,2]
[360970889,1747171847398,-1432.24,0.00014246,2]
[360970890,1747171847411,-400.0,0.00014246,2]
[360970891,1747171847423,-1271.55,0.00014246,2]
[360970892,1747171847437,-951.73,0.00014246,2]
[360970893,1747171847450,-1964.72,0.00014246,2]
[360970894,1747171847463,-1346.18,0.00014246,2]
[360970895,1747171847476,-400.0,0.00014246,2]
[360970896,1747171847489,-1807.95,0.00014246,2]
[360970897,1747171847501,-1872.93,0.00014246,2]
[360970898,1747171847514,-2038.91,0.00014246,2]
[360970899,1747171847527,-583.95,0.00014246,2]
[360970900,1747171847540,-400.0,0.00014246,2]
[360970901,1747171847553,-400.0,0.00014246,2]
[360970902,1747171847566,-444.52,0.00014246,2]
[360970903,1747171847579,-400.0,0.00014246,2]
[360970904,1747171847594,-777.75,0.00014246,2]
[360970905,1747171847608,-1133.72,0.00014246,2]
[360970906,1747171847620,-1278.45,0.00014246,2]
[360970907,1747171847632,-2383.74,0.00014246,2]
[360970908,1747171847644,-1367.7,0.00014246,2]
[360970909,1747171847657,-2669.62,0.00014246,2]
[360970910,1747171847669,-2642.98,0.00014246,2]
[360970911,1747171847682,-1343.88,0.00014246,2]
[360970912,1747171847694,-6469.5,0.00014246,2]
[360970913,1747171847707,-400.0,0.00014246,2]
[360970914,1747171847719,-400.0,0.00014246,2]
[360970915,1747171847732,-400.0,0.00014246,2]
[360970916,1747171847745,-1188.47,0.00014246,2]
[360970917,1747171847758,-400.0,0.00014246,2]
[360970918,1747171847772,-400.0,0.00014246,2]
[360970919,1747171847784,-1336.58,0.00014246,2]
[360970920,1747171847797,-400.0,0.00014246,2]
[360970921,1747171847809,-400.0,0.00014246,2]
[360970922,1747171847821,-400.0,0.00014246,2]
[360970923,1747171847833,-400.0,0.00014246,2]
[360970924,1747171847847,-400.0,0.00014246,2]
[360970925,1747171847866,-451.71,0.00014246,2]
[360970926,1747171847878,-400.0,0.00014246,2]
[360970927,1747171847895,-531.31,0.00014246,2]
[360970928,1747171847908,-443.98,0.00014246,2]
[360970929,1747171847920,-405.74,0.00014246,2]
[360970930,1747171847933,-400.0,0.00014246,2]
[360970931,1747171847946,-400.0,0.00014246,2]
[360970932,1747171847959,-1336.54,0.00014246,2]
[360970933,1747171847972,-400.0,0.00014246,2]
[360970934,1747171847984,-733.54,0.00014246,2]
[360970935,1747171847997,-602.94,0.00014246,2]
[360970936,1747171848010,-400.0,0.00014246,2]
[360970937,1747171848023,-1080.08,0.00014246,2]
[360970938,1747171848035,-420.67,0.00014246,2]
[360970939,1747171848048,-209.53170102,0.00014246,2]
[360970940,1747171848059,-400.0,0.00014246,2]
[360970941,1747171848072,-693.78,0.00014246,2]
[360970942,1747171848086,-1431.64,0.00014246,2]
[360970943,1747171848099,-400.0,0.00014246,2]
[360970944,1747171848111,-400.0,0.00014246,2]
[360970945,1747171848123,-654.02,0.00014246,2]
[360970946,1747171848135,-1357.77,0.00014246,2]
[360970947,1747171848148,-1212.64,0.00014246,2]
[360970948,1747171848160,-400.0,0.00014246,2]
[360970949,1747171848172,-400.0,0.00014246,2]
[360970950,1747171848185,-2979.51,0.00014246,2]
[360970951,1747171848197,-400.0,0.00014246,2]
[360970952,1747171848209,-400.0,0.00014246,2]
[360970953,1747171848222,-791.3,0.00014246,2]
[360970954,1747171848234,-400.0,0.00014246,2]
[360970955,1747171848246,-6691.48,0.00014246,2]
[360970956,1747171848259,-400.0,0.00014246,2]
[360970957,1747171848271,-3240.36,0.00014246,2]
[360970958,1747171848284,-400.0,0.00014246,2]
[360970959,1747171848296,-796.34,0.00014246,2]
[360970960,1747171848307,-1457.87,0.00014246,2]
[360970961,1747171848321,-400.0,0.00014246,2]
[360970962,1747171848332,-1151.93,0.00014246,2]
[360970963,1747171848344,-400.0,0.00014246,2]
[360970964,1747171848356,-1965.01,0.00014246,2]
[360970965,1747171848369,-575.28,0.00014246,2]
[360970966,1747171848381,-571.86,0.00014246,2]
[360970967,1747171848394,-400.0,0.00014246,2]
[360970968,1747171848406,-1151.88,0.00014246,2]
[360970969,1747171848418,-523.95,0.00014246,2]
[360970970,1747171848431,-2254.02,0.00014246,2]
[360970971,1747171848443,-780.64,0.00014246,2]
[360970972,1747171848455,-885.61,0.00014246,2]
[360970973,1747171848467,-400.0,0.00014246,2]
[360970974,1747171848479,-1896.51,0.00014246,2]
[360970975,1747171848490,-1446.73,0.00014246,2]
[360970976,1747171848501,-400.0,0.00014246,2]
[360970977,1747171848513,-400.0,0.00014246,2]
[360970978,1747171848525,-400.0,0.00014246,2]
[360970979,1747171848537,-400.0,0.00014246,2]
[360970980,1747171848549,-2969.24,0.00014246,2]
[360970981,1747171848561,-761.95,0.00014246,2]
[360970982,1747171848573,-3596.39,0.00014246,2]
[360970983,1747171848584,-2929.92,0.00014246,2]
[360970984,1747171848596,-629.36,0.00014246,2]
[360970985,1747171848608,-400.0,0.00014246,2]
[360970986,1747171848619,-6035.7,0.00014246,2]
[360970987,1747171848632,-2648.74,0.00014246,2]
[360970988,1747171848644,-400.0,0.00014246,2]
[360970989,1747171848655,-720.33,0.00014246,2]
[360970990,1747171848668,-1698.59,0.00014246,2]
[360970991,1747171848680,-904.66,0.00014246,2]
[360970992,1747171848692,-500.0,0.00014246,2]
[360970993,1747171848703,-458.91,0.00014246,2]
[360970994,1747171848715,-488.71,0.00014246,2]
[360970995,1747171848727,-4244.97,0.00014246,2]
[360970996,1747171848739,-400.0,0.00014246,2]
[360970997,1747171848751,-410.67842696,0.00014246,2]
[360970998,1747171848763,-408.43,0.00014246,2]
[360970999,1747171848775,-424.56,0.00014246,2]
[360971000,1747171848786,-400.0,0.00014246,2]
[360971001,1747171848798,-832.4,0.00014246,2]
[360971002,1747171848809,-400.0,0.00014246,2]
[360971003,1747171848821,-687.37,0.00014246,2]
[360971004,1747171848833,-593.97,0.00014246,2]
[360971005,1747171848845,-933.65,0.00014246,2]
[360971006,1747171848859,-7895.42,0.00014246,2]
[360971007,1747171848871,-729.98,0.00014246,2]
[360971008,1747171848883,-781.28,0.00014246,2]
[360971009,1747171848895,-508.61,0.00014246,2]
[360971010,1747171848909,-400.0,0.00014246,2]
[360971011,1747171848921,-1748.5,0.00014246,2]
[360971012,1747171848933,-400.0,0.00014246,2]
[360971013,1747171848946,-968.62,0.00014246,2]
[360971014,1747171848958,-2237.52,0.00014246,2]
[360971015,1747171848969,-400.0,0.00014246,2]
[360971016,1747171848982,-400.0,0.00014246,2]
[360971017,1747171848994,-400.0,0.00014246,2]
[360971018,1747171849005,-948.76,0.00014246,2]
[360971019,1747171849017,-12091.79,0.00014246,2]
[360971020,1747171849028,-400.0,0.00014246,2]
[360971021,1747171849040,-400.0,0.00014246,2]
[360971022,1747171849052,-3495.32,0.00014246,2]
[360971023,1747171849063,-400.0,0.00014246,2]
[360971024,1747171849075,-400.0,0.00014246,2]
[360971025,1747171849087,-4347.15,0.00014246,2]
[360971026,1747171849100,-1362.33,0.00014246,2]
[360971027,1747171849112,-789.92,0.00014246,2]
[360971028,1747171849124,-252.63731051,0.00014246,2]
[360971029,1747171849136,-400.0,0.00014246,2]
[360971030,1747171849148,-907.61,0.00014246,2]
[360971031,1747171849160,-1962.79,0.00014246,2]
[360971032,1747171849171,-400.0,0.00014246,2]
[360971033,1747171849183,-2729.47,0.00014246,2]
[360971034,1747171849194,-400.0,0.00014246,2]
[360971035,1747171849206,-400.0,0.00014246,2]
[360971036,1747171849218,-657.59,0.00014246,2]
[360971037,1747171849229,-7706.43,0.00014246,2]
[360971038,1747171849240,-400.0,0.00014246,2]
[360971039,1747171849252,-1074.08,0.00014246,2]
[360971040,1747171849264,-2264.38,0.00014246,2]
[360971041,1747171849276,-400.0,0.00014246,2]
[360971042,1747171849288,-500.0,0.00014273,2]
[360971043,1747171849300,-250.0,0.00014361,2]
[360971044,1747171849312,-400.0,0.00014373,2]
[360971045,1747171849324,-692.0,0.00014373,2]
[360971046,1747171849336,-800.0,0.00014373,2]
[360971047,1747171849349,-152.0,0.00014373,2]
[360971048,1747171849361,-248.0,0.00014373,2]
[360971049,1747171849373,-692.0,0.00014373,2]
[360971050,1747171849385,-692.0,0.00014373,2]
[360971051,1747171849397,-692.0,0.00014373,2]
[360971052,1747171849409,-692.0,0.00014373,2]
[360971053,1747171849843,-151.0,0.00014373,2]
[360971054,1747171849881,-692.0,0.00014373,2]
[360971055,1747171849895,-692.0,0.00014373,2]
[360971056,1747171849905,-692.0,0.00014373,2]
[360971057,1747171849915,-692.0,0.00014373,2]
[360971058,1747171849924,-692.0,0.00014373,2]
[360971059,1747171849936,-692.0,0.00014373,2]
[360971060,1747171849945,-692.0,0.00014373,2]
[360971061,1747171849955,-692.0,0.00014373,2]
[360971062,1747171849965,-692.0,0.00014373,2]
[360971063,1747171849975,-298.91823976,0.00014373,2]
[360971064,1747171849985,-3919.04120907,0.0001442,2]
[360971065,1747171849996,-18703.07790945,0.00014452,2]
[360971066,1747171850006,-3069.63,0.00014519,2]
[360971067,1747171850017,-1733.83,0.00014519,2]
[360971068,1747171850027,-160.0,0.00014519,2]
[360971069,1747171850036,-151.0,0.0001452,2]
[360971070,1747171850046,-151.0,0.0001452,2]
[360971071,1747171850056,-151.0,0.0001452,2]
[360971072,1747171850065,-151.0,0.0001452,2]
[360971073,1747171850074,-151.0,0.0001452,2]
[360971074,1747171850083,-237.862194,0.0001452,2]
[360971075,1747171850093,-400.0,0.0001452,2]
[360971076,1747171850103,-400.0,0.0001452,2]
[360971077,1747171850112,-400.0,0.0001452,2]
[360971078,1747171850122,-400.0,0.0001452,2]
[360971079,1747171850131,-400.0,0.0001452,2]
[360971080,1747171850141,-333.7365088,0.0001452,2]
[360971081,1747171850150,-400.0,0.0001452,2]
[360971082,1747171850159,-400.0,0.0001452,2]
[360971083,1747171850169,-400.0,0.0001452,2]
[360971084,1747171850178,-702.95,0.0001452,2]
[360971085,1747171850187,-507.39076255,0.0001452,2]
[360971086,1747171850197,-400.0,0.0001452,2]
[360971087,1747171850207,-400.0,0.0001452,2]
[360971088,1747171850217,-400.0,0.0001452,2]
[360971089,1747171850226,-654.93,0.0001452,2]
[360971090,1747171850236,-400.0,0.0001452,2]
[360971091,1747171850245,-400.0,0.0001452,2]
[360971092,1747171850255,-400.0,0.0001452,2]
[360971093,1747171850265,-400.0,0.0001452,2]
[360971094,1747171850275,-400.0,0.0001452,2]
[360971095,1747171850285,-400.0,0.0001452,2]
[360971096,1747171850294,-400.0,0.0001452,2]
[360971097,1747171850303,-439.25,0.0001452,2]
[360971098,1747171850313,-432.91,0.0001452,2]
[360971099,1747171850323,-400.0,0.0001452,2]
[360971100,1747171850333,-400.0,0.0001452,2]
[360971101,1747171850342,-847.75,0.0001452,2]
[360971102,1747171850351,-447.45202691,0.0001452,2]
[360971103,1747171850361,-400.0,0.0001452,2]
[360971104,1747171850370,-400.0,0.0001452,2]
[360971105,1747171850379,-400.0,0.0001452,2]
[360971106,1747171850389,-656.64,0.0001452,2]
[360971107,1747171850398,-400.0,0.0001452,2]
[360971108,1747171850408,-400.0,0.0001452,2]
[360971109,1747171850417,-400.0,0.0001452,2]
[360971110,1747171850426,-400.0,0.0001452,2]
[360971111,1747171850435,-400.0,0.0001452,2]
[360971112,1747171850444,-400.0,0.0001452,2]
[360971113,1747171850454,-400.0,0.0001452,2]
[360971114,1747171850464,-446.11,0.0001452,2]
[360971115,1747171850473,-435.67498951,0.0001452,2]
[360971116,1747171850483,-400.0,0.0001452,2]
[360971117,1747171850492,-400.0,0.0001452,2]
[360971118,1747171850502,-484.00373426,0.0001452,2]
[360971119,1747171850511,-400.0,0.0001452,2]
[360971120,1747171850520,-400.0,0.0001452,2]
[360971121,1747171850529,-465.07,0.0001452,2]
[360971122,1747171850538,-548.45,0.0001452,2]
[360971123,1747171850548,-1210.12,0.0001452,2]
[360971124,1747171850557,-440.46,0.0001452,2]
[360971125,1747171850567,-400.0,0.0001452,2]
[360971126,1747171850576,-623.03,0.0001452,2]
[360971127,1747171850586,-400.0,0.0001452,2]
[360971128,1747171850596,-400.0,0.0001452,2]
[360971129,1747171850605,-400.0,0.0001452,2]
[360971130,1747171850615,-728.48,0.0001452,2]
[360971131,1747171850624,-400.0,0.0001452,2]
[360971132,1747171850634,-402.84,0.0001452,2]
[360971133,1747171850643,-400.0,0.0001452,2]
[360971134,1747171850653,-400.0,0.0001452,2]
[360971135,1747171850663,-400.0,0.0001452,2]
[360971136,1747171850673,-400.0,0.0001452,2]
[360971137,1747171850683,-400.0,0.0001452,2]
[360971138,1747171850694,-400.0,0.0001452,2]
[360971139,1747171850704,-835.13,0.0001452,2]
[360971140,1747171850714,-400.0,0.0001452,2]
[360971141,1747171850724,-400.0,0.0001452,2]
[360971142,1747171850733,-691.47,0.0001452,2]
[360971143,1747171850743,-400.0,0.0001452,2]
[360971144,1747171850753,-523.45,0.0001452,2]
[360971145,1747171850764,-969.04,0.0001452,2]
[360971146,1747171850774,-417.64,0.0001452,2]
[360971147,1747171850784,-400.0,0.0001452,2]
[360971148,1747171850794,-509.63,0.0001452,2]
[360971149,1747171850803,-665.56,0.0001452,2]
[360971150,1747171850813,-400.0,0.0001452,2]
[360971151,1747171850823,-400.0,0.0001452,2]
[360971152,1747171850832,-400.0,0.0001452,2]
[360971153,1747171850842,-400.0,0.0001452,2]
[360971154,1747171850852,-400.0,0.0001452,2]
[360971155,1747171850866,-400.0,0.0001452,2]
[360971156,1747171850876,-449.98058387,0.0001452,2]
[360971157,1747171850885,-400.0,0.0001452,2]
[360971158,1747171850895,-581.28,0.0001452,2]
[360971159,1747171850905,-400.0,0.0001452,2]
[360971160,1747171850916,-964.08,0.0001452,2]
[360971161,1747171850925,-400.0,0.0001452,2]
[360971162,1747171850936,-400.0,0.0001452,2]
[360971163,1747171850947,-442.88,0.0001452,2]
[360971164,1747171850956,-400.0,0.0001452,2]
[360971165,1747171850965,-617.41,0.0001452,2]
[360971166,1747171850975,-400.0,0.0001452,2]
[360971167,1747171850984,-1387.69,0.0001452,2]
[360971168,1747171850994,-587.98,0.0001452,2]
[360971169,1747171851003,-400.0,0.0001452,2]
[360971170,1747171851013,-934.41,0.0001452,2]
[360971171,1747171851023,-400.0,0.0001452,2]
[360971172,1747171851033,-400.0,0.0001452,2]
[360971173,1747171851042,-455.37,0.0001452,2]
[360971174,1747171851052,-400.0,0.0001452,2]
[360971175,1747171851063,-715.7,0.0001452,2]
[360971176,1747171851072,-219.27666489,0.0001452,2]
[360971177,1747171851082,-1050.1,0.0001452,2]
[360971178,1747171851091,-460.61,0.0001452,2]
[360971179,1747171851101,-400.0,0.0001452,2]
[360971180,1747171851110,-400.0,0.0001452,2]
[360971181,1747171851122,-606.18,0.0001452,2]
[360971182,1747171851131,-1497.29,0.0001452,2]
[360971183,1747171851140,-977.91,0.0001452,2]
[360971184,1747171851151,-400.0,0.0001452,2]
[360971185,1747171851161,-400.0,0.0001452,2]
[360971186,1747171851170,-400.0,0.0001452,2]
[360971187,1747171851180,-400.0,0.0001452,2]
[360971188,1747171851191,-670.12,0.0001452,2]
[360971189,1747171851201,-400.0,0.0001452,2]
[360971190,1747171851212,-400.0,0.0001452,2]
[360971191,1747171851221,-400.0,0.0001452,2]
[360971192,1747171851231,-649.09,0.0001452,2]
[360971193,1747171851243,-400.0,0.0001452,2]
[360971194,1747171851252,-400.0,0.0001452,2]
[360971195,1747171851262,-400.0,0.0001452,2]
[360971196,1747171851271,-500.0,0.0001452,2]
[360971197,1747171851281,-400.0,0.0001452,2]
[360971198,1747171851294,-825.86,0.0001452,2]
[360971199,1747171851304,-594.55,0.0001452,2]
[360971200,1747171851313,-631.73,0.0001452,2]
[360971201,1747171851323,-400.63,0.0001452,2]
[360971202,1747171851332,-2082.85,0.0001452,2]
[360971203,1747171851342,-1700.28,0.0001452,2]
[360971204,1747171851352,-400.0,0.0001452,2]
[360971205,1747171851361,-404.66,0.0001452,2]
[360971206,1747171851371,-400.0,0.0001452,2]
[360971207,1747171851380,-400.0,0.0001452,2]
[360971208,1747171851390,-498.37,0.0001452,2]
[360971209,1747171851401,-508.09,0.0001452,2]
[360971210,1747171851413,-400.0,0.0001452,2]
[360971211,1747171851422,-1219.22,0.0001452,2]
[360971212,1747171851432,-400.0,0.0001452,2]
[360971213,1747171851442,-400.0,0.0001452,2]
[360971214,1747171851451,-400.0,0.0001452,2]
[360971215,1747171851461,-2779.5,0.0001452,2]
[360971216,1747171851471,-400.0,0.0001452,2]
[360971217,1747171851480,-400.0,0.0001452,2]
[360971218,1747171851490,-654.77,0.0001452,2]
[360971219,1747171851499,-187.75104682,0.0001452,2]
[360971220,1747171851509,-400.0,0.0001452,2]
[360971221,1747171851518,-400.0,0.0001452,2]
[360971222,1747171851529,-1011.29,0.0001452,2]
[360971223,1747171851539,-400.0,0.0001452,2]
[360971224,1747171851548,-400.0,0.0001452,2]
[360971225,1747171851558,-400.0,0.0001452,2]
[360971226,1747171851568,-1757.96,0.0001452,2]
[360971227,1747171851577,-828.55,0.0001452,2]
[360971228,1747171851587,-639.16,0.0001452,2]
[360971229,1747171851596,-400.0,0.0001452,2]
[360971230,1747171851606,-910.85,0.0001452,2]
[360971231,1747171851616,-493.00663427,0.0001452,2]
[360971232,1747171851626,-400.0,0.0001452,2]
[360971233,1747171851636,-1432.24,0.0001452,2]
[360971234,1747171851646,-400.0,0.0001452,2]
[360971235,1747171851656,-1271.55,0.0001452,2]
[360971236,1747171851667,-951.73,0.0001452,2]
[360971237,1747171851676,-1964.72,0.0001452,2]
[360971238,1747171851686,-1346.18,0.0001452,2]
[360971239,1747171851696,-400.0,0.0001452,2]
[360971240,1747171851706,-1807.95,0.0001452,2]
[360971241,1747171851715,-1872.93,0.0001452,2]
[360971242,1747171851726,-2038.91,0.0001452,2]
[360971243,1747171851736,-583.95,0.0001452,2]
[360971244,1747171851745,-400.0,0.0001452,2]
[360971245,1747171851755,-400.0,0.0001452,2]
[360971246,1747171851765,-444.52,0.0001452,2]
[360971247,1747171851775,-400.0,0.0001452,2]
[360971248,1747171851784,-777.75,0.0001452,2]
[360971249,1747171851795,-1133.72,0.0001452,2]
[360971250,1747171851805,-1278.45,0.0001452,2]
[360971251,1747171851815,-2383.74,0.0001452,2]
[360971252,1747171851824,-1367.7,0.0001452,2]
[360971253,1747171851834,-2669.62,0.0001452,2]
[360971254,1747171851844,-2642.98,0.0001452,2]
[360971255,1747171851854,-1343.88,0.0001452,2]
[360971256,1747171851867,-6469.5,0.0001452,2]
[360971257,1747171851876,-400.0,0.0001452,2]
[360971258,1747171851886,-400.0,0.0001452,2]
[360971259,1747171851895,-400.0,0.0001452,2]
[360971260,1747171851906,-1188.47,0.0001452,2]
[360971261,1747171851917,-400.0,0.0001452,2]
[360971262,1747171851928,-400.0,0.0001452,2]
[360971263,1747171851939,-1336.58,0.0001452,2]
[360971264,1747171851948,-400.0,0.0001452,2]
[360971265,1747171851958,-400.0,0.0001452,2]
[360971266,1747171851967,-400.0,0.0001452,2]
[360971267,1747171851977,-400.0,0.0001452,2]
[360971268,1747171851987,-400.0,0.0001452,2]
[360971269,1747171851996,-451.71,0.0001452,2]
[360971270,1747171852006,-400.0,0.0001452,2]
[360971271,1747171852015,-531.31,0.0001452,2]
[360971272,1747171852025,-443.98,0.0001452,2]
[360971273,1747171852035,-405.74,0.0001452,2]
[360971274,1747171852045,-400.0,0.0001452,2]
[360971275,1747171852054,-400.0,0.0001452,2]
[360971276,1747171852064,-1336.54,0.0001452,2]
[360971277,1747171852074,-400.0,0.0001452,2]
[360971278,1747171852083,-733.54,0.0001452,2]
[360971279,1747171852092,-602.94,0.0001452,2]
[360971280,1747171852102,-400.0,0.0001452,2]
[360971281,1747171852112,-1080.08,0.0001452,2]
[360971282,1747171852122,-420.67,0.0001452,2]
[360971283,1747171852132,-400.0,0.0001452,2]
[360971284,1747171852141,-693.78,0.0001452,2]
[360971285,1747171852151,-1431.64,0.0001452,2]
[360971286,1747171852161,-400.0,0.0001452,2]
[360971287,1747171852171,-400.0,0.0001452,2]
[360971288,1747171852180,-654.02,0.0001452,2]
[360971289,1747171852190,-1357.77,0.0001452,2]
[360971290,1747171852200,-1212.64,0.0001452,2]
[360971291,1747171852210,-400.0,0.0001452,2]
[360971292,1747171852220,-400.0,0.0001452,2]
[360971293,1747171852229,-2979.51,0.0001452,2]
[360971294,1747171852238,-400.0,0.0001452,2]
[360971295,1747171852248,-400.0,0.0001452,2]
[360971296,1747171852258,-791.3,0.0001452,2]
[360971297,1747171852267,-400.0,0.0001452,2]
[360971298,1747171852277,-6691.48,0.0001452,2]
[360971299,1747171852287,-400.0,0.0001452,2]
[360971300,1747171852297,-3240.36,0.0001452,2]
[360971301,1747171852307,-400.0,0.0001452,2]
[360971302,1747171852316,-796.34,0.0001452,2]
[360971303,1747171852326,-1457.87,0.0001452,2]
[360971304,1747171852335,-400.0,0.0001452,2]
[360971305,1747171852345,-1151.93,0.0001452,2]
[360971306,1747171852355,-456.78278806,0.0001452,2]
[360971307,1747171852365,-1965.01,0.0001452,2]
[360971308,1747171852374,-575.28,0.0001452,2]
[360971309,1747171852384,-571.86,0.0001452,2]
[360971310,1747171852393,-400.0,0.0001452,2]
[360971311,1747171852403,-1151.88,0.0001452,2]
[360971312,1747171852414,-523.95,0.0001452,2]
[360971313,1747171852424,-780.64,0.0001452,2]
[360971314,1747171852434,-2254.02,0.0001452,2]
[360971315,1747171852444,-885.61,0.0001452,2]
[360971316,1747171852453,-400.0,0.0001452,2]
[360971317,1747171852463,-1896.51,0.0001452,2]
[360971318,1747171852472,-1446.73,0.0001452,2]
[360971319,1747171852482,-400.0,0.0001452,2]
[360971320,1747171852491,-400.0,0.0001452,2]
[360971321,1747171852501,-400.0,0.0001452,2]
[360971322,1747171852511,-400.0,0.0001452,2]
[360971323,1747171852522,-2969.24,0.0001452,2]
[360971324,1747171852531,-761.95,0.0001452,2]
[360971325,1747171852542,-3596.39,0.0001452,2]
[360971326,1747171852551,-2929.92,0.0001452,2]
[360971327,1747171852564,-629.36,0.0001452,2]
[360971328,1747171852574,-400.0,0.0001452,2]
[360971329,1747171852584,-6035.7,0.0001452,2]
[360971330,1747171852594,-2648.74,0.0001452,2]
[360971331,1747171852604,-400.0,0.0001452,2]
[360971332,1747171852615,-720.33,0.0001452,2]
[360971333,1747171852624,-1698.59,0.0001452,2]
[360971334,1747171852634,-904.66,0.0001452,2]
[360971335,1747171852644,-627.72684674,0.0001452,2]
[360971336,1747171852654,-458.91,0.0001452,2]
[360971337,1747171852663,-488.71,0.0001452,2]
[360971338,1747171852673,-4244.97,0.0001452,2]
[360971339,1747171852683,-400.0,0.0001452,2]
[360971340,1747171852693,-408.43,0.0001452,2]
[360971341,1747171852703,-424.56,0.0001452,2]
[360971342,1747171852713,-400.0,0.0001452,2]
[360971343,1747171852723,-832.4,0.0001452,2]
[360971344,1747171852733,-400.0,0.0001452,2]
[360971345,1747171852743,-687.37,0.0001452,2]
[360971346,1747171852752,-593.97,0.0001452,2]
[360971347,1747171852762,-933.65,0.0001452,2]
[360971348,1747171852772,-7895.42,0.0001452,2]
[360971349,1747171852782,-729.98,0.0001452,2]
[360971350,1747171852792,-781.28,0.0001452,2]
[360971351,1747171852802,-508.61,0.0001452,2]
[360971352,1747171852811,-533.50973512,0.0001452,2]
[360971353,1747171852821,-1748.5,0.0001452,2]